[Event "GER-ch Youth U12W 2020"]
[Site "Willingen"]
[Date "2020.10.30"]
[Round "6.14"]
[White "Rosin, Ida"]
[Black "Reich, Elisabeth"]
[Result "0-1"]
[ECO "B70"]
[WhiteElo "1387"]
[BlackElo "1128"]
[Annotator "NA RC"]
[PlyCount "92"]
[EventDate "2020.10.27"]
[EventType "swiss"]
[EventRounds "7"]
[EventCountry "GER"]
[SourceTitle "playchess.com"]
[Source "ChessBase"]
[SourceQuality "1"]
[TimeControl "40/5400+30:1800+30"]

1. e4 {[%emt 0:00:00]} c5 {[%emt 0:00:00]} 2. Nf3 {[%emt 0:00:00]} d6 {[%emt 0:00:00]} 3. d4 {[%emt 0:00:14]} cxd4 {[%emt 0:00:00]} 4. Nxd4 {[%emt 0:00:10]} Nf6 {[%emt 0:00:00]} 5. Nc3 {[%emt 0:00:17]} g6 {[%emt 0:00:00]} 6. Bg5 {[%emt 0:00:27]} Bg7 {[%emt 0:00:00]} 7. Bb5+ {[%emt 0:01:02]} Bd7 {[%emt 0:00:08]} 8. Bc4 {[%emt 0:00:31]} Nc6 {[%emt 0:00:15]} 9. Qd2 {[%emt 0:00:36]} Nxe4 {[%emt 0:01:29]} 10. Qf4 {[%emt 0:02:37]} Nf6 {[%emt 0:00:30]} 11. Nd5 {[%emt 0:02:57]} O-O {[%emt 0:01:42]} 12. Nxf6+ {[%emt 0:00:28]} exf6 {[%emt 0:00:17]} 13. Bh6 {[%emt 0:01:10]} Bxh6 {[%emt 0:01:05]} 14. Nxc6 {[%emt 0:00:36]} Bxf4 {[%emt 0:00:18]} 15. Nxd8 {[%emt 0:00:17]} Rfxd8 {[%emt 0:00:12]} 16. O-O {[%emt 0:00:34]} f5 {[%emt 0:00:35]} 17. Bd5 {[%emt 0:02:43]} Bc6 {[%emt 0:02:23]} 18. Bb3 {[%emt 0:00:56]} Re8 {[%emt 0:00:29]} 19. Rad1 {[%emt 0:00:15]} Re2 {[%emt 0:02:50]} 20. h3 {[%emt 0:02:37]} Rae8 {[%emt 0:01:24]} 21. g3 {[%emt 0:02:30]} Bxg3 {[%emt 0:01:00]} 22. fxg3 {[%emt 0:00:13]} Rg2+ {[%emt 0:00:09]} 23. Kh1 {[%emt 0:00:14]} Rxc2+ {[%emt 0:00:07]} 24. Kg1 {[%emt 0:00:14]} Rg2+ {[%emt 0:00:06]} 25. Kh1 {[%emt 0:00:16]} Rxb2+ {[%emt 0:00:04]} 26. Bd5 {[%emt 0:00:43]} Bxd5+ {[%emt 0:00:30]} 27. Rxd5 {[%emt 0:00:08]} Ree2 {[%emt 0:00:08]} 28. Rf2 {[%emt 0:00:55]} Rxf2 {[%emt 0:00:13]} 29. Rxd6 {[%emt 0:00:13]} Rxa2 {[%emt 0:00:11]} 30. Rd1 {[%emt 0:00:25]} Rh2+ {[%emt 0:00:07]} 31. Kg1 {[%emt 0:00:13]} Rxh3 {[%emt 0:00:05]} 32. Rd8+ {[%emt 0:00:25]} Kg7 {[%emt 0:00:47]} 33. Rd1 {[%emt 0:00:26]} Rxg3+ {[%emt 0:00:08]} 34. Kf1 {[%emt 0:00:08]} b5 {[%emt 0:00:01]} 35. Rb1 {[%emt 0:00:23]} Rc3 {[%emt 0:00:13]} 36. Ke1 {[%emt 0:00:38]} Rh2 {[%emt 0:00:27]} 37. Kd1 {[%emt 0:00:29]} Rh1+ {[%emt 0:00:13]} 38. Kd2 {[%emt 0:00:11]} Rxb1 {[%emt 0:00:06]} 39. Kxc3 {[%emt 0:00:05]} h5 {[%emt 0:00:06]} 40. Kd4 {[%emt 0:00:12]} h4 {[%emt 0:00:06]} 41. Kc5 {[%emt 0:30:06]} h3 {[%emt 0:30:08]} 42. Kc6 {[%emt 0:00:14]} h2 {[%emt 0:00:05]} 43. Kb7 {[%emt 0:00:11]} h1=Q+ {[%emt 0:00:11]} 44. Ka6 {[%emt 0:00:19]} Qc6+ {[%emt 0:00:14]} 45. Kxa7 {[%emt 0:00:26]} Ra1+ {[%emt 0:00:06]} 46. Kb8 {[%emt 0:00:08]} Ra8# {[%emt 0:00:07]} 0-1

[Event "GER-ch Youth U12W 2020"]
[Site "Willingen"]
[Date "2020.10.30"]
[Round "6.15"]
[White "Khanbekyan, Nare"]
[Black "Glotz, Diana"]
[Result "0-1"]
[ECO "C41"]
[WhiteElo "1329"]
[BlackElo "1098"]
[Annotator "NA RC"]
[PlyCount "112"]
[EventDate "2020.10.27"]
[EventType "swiss"]
[EventRounds "7"]
[EventCountry "GER"]
[SourceTitle "playchess.com"]
[Source "ChessBase"]
[SourceQuality "1"]
[TimeControl "40/5400+30:1800+30"]

1. e4 {[%emt 0:00:00]} e5 {[%emt 0:00:00]} 2. Nf3 {[%emt 0:00:00]} d6 {[%emt 0:00:00]} 3. d4 {[%emt 0:00:02]} Nd7 {[%emt 0:00:11]} 4. Bc4 {[%emt 0:00:25]} c6 {[%emt 0:00:24]} 5. Nc3 Be7 {[%emt 0:00:24]} 6. Be3 {[%emt 0:03:06]} Ngf6 {[%emt 0:01:17]} 7. O-O {[%emt 0:05:55]} O-O {[%emt 0:00:50]} 8. Qd2 {[%emt 0:02:29]} Qc7 {[%emt 0:01:28]} 9. Nh4 {[%emt 0:05:44]} Nxe4 {[%emt 0:07:57]} 10. Nxe4 {[%emt 0:02:58]} Bxh4 {[%emt 0:00:11]} 11. Ng3 {[%emt 0:07:17]} Nb6 {[%emt 0:09:46]} 12. Bd3 {[%emt 0:05:13]} f6 {[%emt 0:05:37]} 13. dxe5 {[%emt 0:07:24]} dxe5 {[%emt 0:00:31]} 14. a4 {[%emt 0:08:19]} Rd8 {[%emt 0:00:58]} 15. Qe2 {[%emt 0:04:10]} g6 {[%emt 0:10:34]} 16. Ne4 {[%emt 0:05:58]} Bf5 {[%emt 0:08:15]} 17. c4 {[%emt 0:04:36]} Bxe4 {[%emt 0:12:18]} 18. Bxe4 {[%emt 0:00:26]} Bg5 {[%emt 0:00:53]} 19. Bc5 {[%emt 0:03:06]} f5 {[%emt 0:03:59]} 20. Bc2 {[%emt 0:01:17]} Rd2 {[%emt 0:00:49]} 21. Qf3 {[%emt 0:06:51]} Rxc2 {[%emt 0:00:15]} 22. Qd3 {[%emt 0:00:26]} Rxc4 {[%emt 0:00:42]} 23. Bxb6 {[%emt 0:00:27]} Qxb6 {[%emt 0:03:13]} 24. Qxc4+ {[%emt 0:00:28]} Kg7 {[%emt 0:00:17]} 25. b4 {[%emt 0:03:21]} Rd8 {[%emt 0:03:00]} 26. a5 {[%emt 0:00:35]} Qd4 {[%emt 0:00:27]} 27. Qxd4 {[%emt 0:01:21]} Rxd4 {[%emt 0:00:10]} 28. Rfd1 {[%emt 0:01:07]} Rxb4 {[%emt 0:00:31]} 29. Rab1 {[%emt 0:00:12]} Be7 {[%emt 0:02:45]} 30. Rxb4 {[%emt 0:00:23]} Bxb4 {[%emt 0:00:10]} 31. Rd7+ {[%emt 0:00:16]} Kh6 {[%emt 0:00:16]} 32. Rxb7 {[%emt 0:00:31]} Bxa5 {[%emt 0:00:14]} 33. Rxa7 {[%emt 0:00:06]} Bb6 {[%emt 0:00:13]} 34. Ra6 {[%emt 0:00:15]} Bd4 {[%emt 0:00:33]} 35. Rxc6 {[%emt 0:00:20]} Kg5 {[%emt 0:00:13]} 36. Kf1 {[%emt 0:00:29]} e4 {[%emt 0:01:02]} 37. Ke2 {[%emt 0:00:35]} Be5 {[%emt 0:01:51]} 38. h3 {[%emt 0:00:37]} Kh4 {[%emt 0:00:33]} 39. f3 {[%emt 0:02:21]} exf3+ {[%emt 0:00:24]} 40. gxf3 {[%emt 0:00:11]} Kxh3 {[%emt 0:00:18]} 41. Re6 {[%emt 0:30:24]} Ba1 {[%emt 0:31:25]} 42. Re7 {[%emt 0:00:31]} h5 {[%emt 0:00:29]} 43. Re6 {[%emt 0:00:38]} g5 {[%emt 0:01:07]} 44. Rh6 {[%emt 0:00:59]} Kh4 {[%emt 0:00:26]} 45. Kf2 {[%emt 0:01:13]} Bd4+ {[%emt 0:00:58]} 46. Kg2 {[%emt 0:00:18]} Be3 {[%emt 0:01:36]} 47. Rc6 {[%emt 0:00:43]} g4 {[%emt 0:02:45]} 48. Rc4 {[%emt 0:01:04]} f4 {[%emt 0:00:49]} 49. fxg4 {[%emt 0:00:43]} hxg4 {[%emt 0:00:14]} 50. Rc7 {[%emt 0:01:03]} f3+ {[%emt 0:00:30]} 51. Kh2 {[%emt 0:00:35]} Bf4+ {[%emt 0:00:16]} 52. Kg1 {[%emt 0:00:25]} Bxc7 {[%emt 0:00:08]} 53. Kf1 {[%emt 0:00:04]} g3 {[%emt 0:00:08]} 54. Kg1 {[%emt 0:00:06]} g2 {[%emt 0:00:44]} 55. Kf2 {[%emt 0:00:14]} Kh3 {[%emt 0:00:21]} 56. Kg1 {[%emt 0:00:09]} Bb6# 0-1

[Event "GER-ch Youth U12W 2020"]
[Site "Willingen"]
[Date "2020.10.30"]
[Round "6.16"]
[White "Czäczine, Laura"]
[Black "Modali, Nikhilamrutha"]
[Result "1-0"]
[ECO "B13"]
[WhiteElo "1309"]
[BlackElo "1193"]
[Annotator "NA RC"]
[PlyCount "51"]
[EventDate "2020.10.27"]
[EventType "swiss"]
[EventRounds "7"]
[EventCountry "GER"]
[SourceTitle "playchess.com"]
[Source "ChessBase"]
[SourceQuality "1"]
[TimeControl "40/5400+30:1800+30"]

1. e4 {[%emt 0:00:00]} c6 {[%emt 0:00:00]} 2. d4 {[%emt 0:00:00]} d5 {[%emt 0:00:00]} 3. exd5 {[%emt 0:00:10]} cxd5 {[%emt 0:00:00]} 4. c4 {[%emt 0:00:19]} Nf6 {[%emt 0:02:27]} 5. Nf3 {[%emt 0:02:09]} Bf5 {[%emt 0:02:30]} 6. Be2 {[%emt 0:02:21]} e6 {[%emt 0:02:20]} 7. Nc3 {[%emt 0:02:34]} Bd6 {[%emt 0:05:50]} 8. O-O {[%emt 0:01:47]} O-O {[%emt 0:00:34]} 9. Bg5 {[%emt 0:01:35]} Nbd7 {[%emt 0:01:14]} 10. cxd5 {[%emt 0:02:20]} exd5 {[%emt 0:04:27]} 11. Nxd5 {[%emt 0:00:27]} Rc8 {[%emt 0:04:01]} 12. Bb5 {[%emt 0:01:57]} h6 {[%emt 0:07:07]} 13. Bh4 {[%emt 0:00:57]} g5 {[%emt 0:10:19]} 14. Bg3 {[%emt 0:04:28]} Bxg3 {[%emt 0:03:04]} 15. Nxf6+ {[%emt 0:00:38]} Nxf6 {[%emt 0:01:01]} 16. fxg3 {[%emt 0:01:27]} Qb6 {[%emt 0:10:19]} 17. Ba4 {[%emt 0:03:37]} Qxb2 {[%emt 0:02:42]} 18. Bb3 {[%emt 0:01:54]} Qa3 {[%emt 0:07:49]} 19. Ne5 {[%emt 0:00:26]} Nd5 {[%emt 0:10:03]} 20. Bxd5 {[%emt 0:02:17]} Qe3+ {[%emt 0:01:09]} 21. Kh1 {[%emt 0:01:11]} Be6 {[%emt 0:04:48]} 22. Bxe6 {[%emt 0:02:05]} fxe6 {[%emt 0:00:05]} 23. Qh5 {[%emt 0:02:29]} Rxf1+ {[%emt 0:01:04]} 24. Rxf1 {[%emt 0:00:08]} Rc1 {[%emt 0:00:06]} 25. Qg6+ {[%emt 0:00:15]} Kh8 {[%emt 0:00:09]} 26. Nf7# {[%emt 0:00:39]} 1-0

[Event "GER-ch Youth U12W 2020"]
[Site "Willingen"]
[Date "2020.10.30"]
[Round "6.17"]
[White "Flierl, Veronika"]
[Black "Woiteck, Helena"]
[Result "1-0"]
[ECO "C54"]
[WhiteElo "1404"]
[BlackElo "1092"]
[Annotator "NA"]
[PlyCount "87"]
[EventDate "2020.10.27"]
[EventType "swiss"]
[EventRounds "7"]
[EventCountry "GER"]
[SourceTitle "playchess.com"]
[Source "ChessBase"]
[SourceQuality "1"]
[TimeControl "40/5400+30:1800+30"]

1. e4 {[%emt 0:00:00]} e5 {[%emt 0:00:00]} 2. Nf3 {[%emt 0:00:00]} Nc6 {[%emt 0:00:00]} 3. Bc4 {[%emt 0:00:00]} Bc5 {[%emt 0:00:03]} 4. c3 {[%emt 0:00:00]} Nf6 {[%emt 0:04:49]} 5. d4 {[%emt 0:00:00]} d5 {[%emt 0:01:29]} 6. exd5 {[%emt 0:03:13]} exd4 {[%emt 0:02:31]} 7. dxc6 {[%emt 0:00:51]} dxc3 {[%emt 0:01:04]} 8. Qxd8+ {[%emt 0:00:43]} Kxd8 {[%emt 0:00:07]} 9. Nxc3 {[%emt 0:00:10]} Re8+ {[%emt 0:00:24]} 10. Be2 {[%emt 0:03:10]} Ng4 {[%emt 0:02:08]} 11. O-O {[%emt 0:01:15]} Bb4 {[%emt 0:02:30]} 12. Rd1+ {[%emt 0:01:04]} Ke7 {[%emt 0:00:37]} 13. Nd5+ {[%emt 0:00:21]} Kf8 {[%emt 0:00:40]} 14. Nxb4 {[%emt 0:00:14]} Rxe2 {[%emt 0:01:12]} 15. Nd3 {[%emt 0:04:15]} bxc6 {[%emt 0:00:53]} 16. h3 {[%emt 0:01:49]} Nf6 {[%emt 0:02:00]} 17. Be3 {[%emt 0:00:41]} Rc2 {[%emt 0:07:27]} 18. Bc5+ {[%emt 0:02:53]} Kg8 {[%emt 0:04:12]} 19. Nb4 {[%emt 0:02:01]} Bf5 {[%emt 0:04:27]} 20. Nxc2 {[%emt 0:00:59]} Bxc2 {[%emt 0:03:41]} 21. Rd2 {[%emt 0:00:28]} Bf5 {[%emt 0:02:42]} 22. Rad1 {[%emt 0:05:25]} Nd5 {[%emt 0:03:49]} 23. Ne5 {[%emt 0:01:51]} h6 {[%emt 0:07:19]} 24. Nxc6 {[%emt 0:00:33]} Nf6 {[%emt 0:01:34]} 25. Ne7+ {[%emt 0:00:13]} Kh7 {[%emt 0:01:01]} 26. Nxf5 {[%emt 0:00:06]} Ne4 {[%emt 0:02:17]} 27. Rc2 {[%emt 0:01:24]} g6 {[%emt 0:05:26]} 28. Ng3 {[%emt 0:02:21]} Ng5 {[%emt 0:03:00]} 29. Rcd2 {[%emt 0:03:46]} Ne6 {[%emt 0:02:40]} 30. Bb4 {[%emt 0:00:22]} a5 {[%emt 0:00:46]} 31. Bc3 {[%emt 0:00:06]} h5 {[%emt 0:00:57]} 32. Rd7 {[%emt 0:00:48]} Kg8 {[%emt 0:01:44]} 33. Ne4 {[%emt 0:00:35]} Rf8 {[%emt 0:04:42]} 34. Nf6+ {[%emt 0:02:04]} Kh8 {[%emt 0:02:37]} 35. g4 {[%emt 0:02:04]} h4 {[%emt 0:04:34]} 36. Nd5+ {[%emt 0:02:17]} Kh7 {[%emt 0:03:39]} 37. Re1 {[%emt 0:01:03]} c6 {[%emt 0:01:32]} 38. Rxe6 {[%emt 0:01:30]} cxd5 {[%emt 0:02:21]} 39. g5 {[%emt 0:00:49]} a4 {[%emt 0:01:12]} 40. Red6 {[%emt 0:00:00]} d4 {[%emt 0:00:57]} 41. Bxd4 {[%emt 0:29:56]} a3 {[%emt 0:31:30]} 42. b4 {[%emt 0:00:23]} Rb8 {[%emt 0:00:57]} 43. Rd8 {[%emt 0:00:09]} f6 {[%emt 0:00:54]} 44. R6d7# 1-0

[Event "GER-ch Youth U12W 2020"]
[Site "Willingen"]
[Date "2020.10.30"]
[Round "6.18"]
[White "Hoffmann, Sophia"]
[Black "Eichhorn, Mathilda"]
[Result "0-1"]
[ECO "D00"]
[WhiteElo "1345"]
[BlackElo "1560"]
[Annotator "NA RC"]
[PlyCount "136"]
[EventDate "2020.10.27"]
[EventType "swiss"]
[EventRounds "7"]
[EventCountry "GER"]
[SourceTitle "playchess.com"]
[Source "ChessBase"]
[SourceQuality "1"]
[TimeControl "40/5400+30:1800+30"]

1. d4 {[%emt 0:00:00]} d5 {[%emt 0:00:00]} 2. Bf4 {[%emt 0:00:00]} c5 {[%emt 0:00:00]} 3. e3 {[%emt 0:00:08]} Nc6 {[%emt 0:00:00]} 4. Nf3 {[%emt 0:00:31]} Nf6 {[%emt 0:00:08]} 5. c3 {[%emt 0:01:22]} Qb6 {[%emt 0:00:15]} 6. Qc2 {[%emt 0:04:04]} Bg4 {[%emt 0:00:34]} 7. Nbd2 {[%emt 0:04:06]} e6 {[%emt 0:00:25]} 8. c4 {[%emt 0:02:50]} Bf5 {[%emt 0:03:39]} 9. Qc3 {[%emt 0:11:38]} Ne4 {[%emt 0:20:37]} 10. Qb3 {[%emt 0:12:11]} Nxd2 {[%emt 0:05:01]} 11. Nxd2 {[%emt 0:05:46]} cxd4 {[%emt 0:01:10]} 12. cxd5 {[%emt 0:11:16]} dxe3 {[%emt 0:11:58]} 13. Qxb6 {[%emt 0:14:31]} exd2+ {[%emt 0:00:38]} 14. Bxd2 {[%emt 0:00:40]} axb6 {[%emt 0:00:13]} 15. dxc6 {[%emt 0:00:57]} bxc6 {[%emt 0:00:09]} 16. g3 {[%emt 0:06:24]} Be4 {[%emt 0:00:31]} 17. Rg1 {[%emt 0:01:00]} Bc5 {[%emt 0:00:48]} 18. Bh3 {[%emt 0:07:52]} O-O {[%emt 0:02:23]} 19. Rf1 {[%emt 0:03:18]} Bd5 {[%emt 0:01:22]} 20. a3 {[%emt 0:03:15]} Bc4 {[%emt 0:03:37]} 21. Rg1 {[%emt 0:00:29]} Rfd8 {[%emt 0:01:49]} 22. Rg2 {[%emt 0:04:51]} Bd5 {[%emt 0:00:36]} 23. Rg1 {[%emt 0:00:13]} Rd7 {[%emt 0:01:07]} 24. Bg2 {[%emt 0:02:05]} Bxg2 {[%emt 0:01:16]} 25. Rxg2 {[%emt 0:00:06]} Rad8 {[%emt 0:00:19]} 26. O-O-O {[%emt 0:00:39]} b5 {[%emt 0:00:28]} 27. f4 {[%emt 0:01:01]} Be3 {[%emt 0:01:00]} 28. Re2 {[%emt 0:01:28]} Bxd2+ {[%emt 0:00:37]} 29. Rexd2 {[%emt 0:00:14]} Rxd2 {[%emt 0:00:07]} 30. Rxd2 {[%emt 0:00:02]} Rxd2 {[%emt 0:00:11]} 31. Kxd2 {[%emt 0:00:01]} Kf8 {[%emt 0:00:48]} 32. Kd3 {[%emt 0:00:53]} Ke7 {[%emt 0:00:10]} 33. Kd4 {[%emt 0:00:32]} Kd6 {[%emt 0:00:23]} 34. b4 {[%emt 0:00:38]} f5 {[%emt 0:00:36]} 35. h3 {[%emt 0:00:37]} h5 {[%emt 0:00:13]} 36. h4 {[%emt 0:00:55]} g6 {[%emt 0:00:14]} 37. Ke3 {[%emt 0:00:52]} Kd5 {[%emt 0:00:14]} 38. Kd3 {[%emt 0:00:19]} c5 {[%emt 0:02:33]} 39. bxc5 {[%emt 0:00:11]} Kxc5 {[%emt 0:00:09]} 40. Kc3 {[%emt 0:00:09]} Kc6 {[%emt 0:00:15]} 41. Kc2 {[%emt 0:30:37]} Kd6 {[%emt 0:31:15]} 42. Kd2 {[%emt 0:00:00]} e5 {[%emt 0:00:00]} 43. Ke3 {[%emt 0:00:00]} e4 {[%emt 0:00:00]} 44. Kd2 {[%emt 0:00:00]} Kd5 {[%emt 0:00:00]} 45. Kc3 {[%emt 0:00:00]} Kc5 {[%emt 0:00:00]} 46. Kd2 {[%emt 0:00:00]} Kd4 {[%emt 0:00:00]} 47. Kd1 {[%emt 0:02:41]} Kd3 {[%emt 0:00:00]} 48. Kc1 {[%emt 0:00:42]} Ke2 {[%emt 0:00:00]} 49. Kc2 {[%emt 0:00:25]} Kf2 {[%emt 0:00:00]} 50. Kc3 {[%emt 0:00:11]} e3 {[%emt 0:00:00]} 51. Kb4 {[%emt 0:00:25]} e2 {[%emt 0:00:00]} 52. Kxb5 {[%emt 0:00:03]} e1=Q {[%emt 0:00:00]} 53. a4 {[%emt 0:00:05]} Qe8+ {[%emt 0:00:00]} 54. Kb4 {[%emt 0:00:02]} Qa8 {[%emt 0:00:00]} 55. a5 {[%emt 0:00:06]} Kxg3 {[%emt 0:00:00]} 56. Kb5 {[%emt 0:00:13]} Kxf4 {[%emt 0:00:00]} 57. Kc4 {[%emt 0:00:12]} Qxa5 {[%emt 0:00:00]} 58. Kd4 {[%emt 0:00:08]} Qe5+ {[%emt 0:00:00]} 59. Kd3 {[%emt 0:00:06]} Qe3+ {[%emt 0:00:00]} 60. Kc4 {[%emt 0:00:03]} Qd2 {[%emt 0:00:00]} 61. Kc5 {[%emt 0:00:08]} Ke5 {[%emt 0:00:00]} 62. Kc4 {[%emt 0:00:11]} Qd4+ {[%emt 0:00:00]} 63. Kb3 {[%emt 0:00:08]} Qc5 {[%emt 0:00:00]} 64. Kb2 {[%emt 0:00:11]} Kd4 {[%emt 0:00:00]} 65. Kb3 {[%emt 0:00:10]} Qc3+ {[%emt 0:00:00]} 66. Ka2 {[%emt 0:00:18]} Qb4 {[%emt 0:00:00]} 67. Ka1 {[%emt 0:00:05]} Kc3 {[%emt 0:00:00]} 68. Ka2 {[%emt 0:00:08]} Qb2# 0-1

[Event "GER-ch Youth U12W 2020"]
[Site "Willingen"]
[Date "2020.10.30"]
[Round "6.19"]
[White "Marrufo, Emilia"]
[Black "Moldovan, Tatiana"]
[Result "0-1"]
[ECO "B28"]
[WhiteElo "788"]
[BlackElo "1516"]
[Annotator "NA RC"]
[PlyCount "33"]
[EventDate "2020.10.27"]
[EventType "swiss"]
[EventRounds "7"]
[EventCountry "GER"]
[SourceTitle "playchess.com"]
[Source "ChessBase"]
[SourceQuality "1"]
[TimeControl "40/5400+30:1800+30"]

1. e4 {[%emt 0:00:00]} c5 {[%emt 0:02:06]} 2. Nf3 {[%emt 0:00:17]} a6 {[%emt 0:00:34]} 3. c3 {[%emt 0:00:15]} d5 {[%emt 0:00:48]} 4. e5 d4 {[%emt 0:00:26]} 5. Be2 {[%emt 0:02:02]} d3 {[%emt 0:00:28]} 6. Bf1 {[%emt 0:00:36]} c4 {[%emt 0:00:25]} 7. b3 {[%emt 0:01:04]} b5 {[%emt 0:00:15]} 8. a4 {[%emt 0:00:36]} Bb7 {[%emt 0:00:25]} 9. g3 {[%emt 0:00:42]} Nd7 {[%emt 0:00:42]} 10. Bg2 {[%emt 0:00:22]} Nxe5 {[%emt 0:00:28]} 11. Nxe5 {[%emt 0:00:16]} Bxg2 {[%emt 0:00:35]} 12. Ng4 {[%emt 0:00:00]} e6 {[%emt 0:01:42]} 13. Ne3 {[%emt 0:01:24]} cxb3 {[%emt 0:00:19]} 14. Qe2 {[%emt 0:01:21]} Nf6 {[%emt 0:01:25]} 15. Nc4 {[%emt 0:03:19]} Nd5 {[%emt 0:05:27]} 16. Ba3 {[%emt 0:04:01]} Nxc3 {[%emt 0:01:08]} 17. Nd6+ {[%emt 0:00:00]} 0-1

[Event "GER-ch Youth U12W 2020"]
[Site "Willingen"]
[Date "2020.10.30"]
[Round "6.20"]
[White "Heutling, Sarah"]
[Black "Heuberger, Sandra"]
[Result "1-0"]
[ECO "C55"]
[WhiteElo "1197"]
[BlackElo "1004"]
[Annotator "NA RC"]
[PlyCount "107"]
[EventDate "2020.10.27"]
[EventType "swiss"]
[EventRounds "7"]
[EventCountry "GER"]
[SourceTitle "playchess.com"]
[Source "ChessBase"]
[SourceQuality "1"]
[TimeControl "40/5400+30:1800+30"]

1. e4 {[%emt 0:00:00]} e5 {[%emt 0:00:00]} 2. Nf3 {[%emt 0:00:00]} Nc6 {[%emt 0:00:00]} 3. Bc4 {[%emt 0:00:00]} Nf6 {[%emt 0:00:25]} 4. d4 {[%emt 0:00:15]} exd4 {[%emt 0:02:30]} 5. e5 {[%emt 0:00:16]} d5 {[%emt 0:06:18]} 6. Bb5 {[%emt 0:01:17]} Ne4 {[%emt 0:03:10]} 7. Nxd4 {[%emt 0:00:29]} Bd7 {[%emt 0:01:30]} 8. Nxc6 {[%emt 0:10:07]} Bxc6 {[%emt 0:00:58]} 9. Bxc6+ {[%emt 0:00:10]} bxc6 {[%emt 0:00:15]} 10. O-O {[%emt 0:00:54]} Bc5 {[%emt 0:02:24]} 11. Qe2 {[%emt 0:01:53]} O-O {[%emt 0:02:50]} 12. Nd2 {[%emt 0:00:23]} Nxd2 {[%emt 0:02:35]} 13. Bxd2 {[%emt 0:00:08]} Re8 {[%emt 0:01:52]} 14. Rfe1 {[%emt 0:01:17]} Rb8 {[%emt 0:06:37]} 15. Rab1 {[%emt 0:03:12]} f6 {[%emt 0:05:02]} 16. b4 {[%emt 0:00:18]} Bd4 {[%emt 0:02:26]} 17. e6 {[%emt 0:03:55]} Qd6 {[%emt 0:11:18]} 18. Qg4 {[%emt 0:04:04]} Be5 {[%emt 0:06:51]} 19. Bh6 {[%emt 0:01:08]} Re7 {[%emt 0:03:36]} 20. f4 {[%emt 0:07:53]} Bd4+ {[%emt 0:02:40]} 21. Kh1 {[%emt 0:01:09]} Rxb4 {[%emt 0:08:56]} 22. Rbc1 {[%emt 0:09:36]} Bc3 {[%emt 0:04:02]} 23. Re2 {[%emt 0:02:40]} c5 {[%emt 0:07:41]} 24. Qg3 {[%emt 0:03:18]} Bd4 {[%emt 0:04:35]} 25. c3 {[%emt 0:02:20]} Rc4 {[%emt 0:00:58]} 26. Rb1 {[%emt 0:03:07]} Qd8 {[%emt 0:00:55]} 27. cxd4 {[%emt 0:00:47]} Rxd4 {[%emt 0:00:29]} 28. f5 {[%emt 0:00:32]} Rb4 {[%emt 0:00:37]} 29. Rxb4 {[%emt 0:01:07]} cxb4 {[%emt 0:00:05]} 30. Rf2 {[%emt 0:00:33]} d4 {[%emt 0:00:26]} 31. Bd2 {[%emt 0:00:53]} c5 {[%emt 0:00:15]} 32. Rf4 {[%emt 0:00:51]} h5 {[%emt 0:00:36]} 33. Qh3 {[%emt 0:03:18]} Qe8 {[%emt 0:00:23]} 34. g4 {[%emt 0:00:50]} Qa4 {[%emt 0:01:55]} 35. Qb3 {[%emt 0:04:20]} Qc6+ {[%emt 0:00:39]} 36. Qf3 {[%emt 0:00:58]} Qa4 {[%emt 0:01:04]} 37. Qb3 {[%emt 0:06:18]} Qc6+ {[%emt 0:00:35]} 38. Kg1 {[%emt 0:00:06]} h4 {[%emt 0:00:36]} 39. h3 {[%emt 0:00:37]} a5 {[%emt 0:00:18]} 40. a3 {[%emt 0:00:55]} a4 {[%emt 0:01:38]} 41. Qb2 {[%emt 0:30:24]} b3 {[%emt 0:30:21]} 42. Be1 {[%emt 0:01:42]} d3 {[%emt 0:01:37]} 43. g5 {[%emt 0:02:14]} c4 {[%emt 0:01:04]} 44. gxf6 {[%emt 0:01:00]} Qc5+ {[%emt 0:00:58]} 45. Kh2 {[%emt 0:00:23]} Rc7 {[%emt 0:01:12]} 46. f7+ {[%emt 0:00:51]} Kf8 {[%emt 0:00:43]} 47. Bb4 {[%emt 0:00:10]} Qxb4 {[%emt 0:00:27]} 48. axb4 {[%emt 0:00:07]} c3 {[%emt 0:00:17]} 49. Rxh4 {[%emt 0:02:13]} Ke7 {[%emt 0:01:34]} 50. Qg2 {[%emt 0:02:22]} Rc8 {[%emt 0:01:42]} 51. Qb7+ {[%emt 0:00:53]} Kf6 {[%emt 0:01:19]} 52. Qxc8 {[%emt 0:00:34]} c2 {[%emt 0:00:55]} 53. f8=Q+ {[%emt 0:00:14]} Ke5 {[%emt 0:00:39]} 54. Qcc5# {[%emt 0:00:29]} 1-0

[Event "GER-ch Youth U12W 2020"]
[Site "Willingen"]
[Date "2020.10.31"]
[Round "7.1"]
[White "Arnold, Rubina"]
[Black "Wartenberg, Alissa"]
[Result "0-1"]
[ECO "C77"]
[WhiteElo "1414"]
[BlackElo "1463"]
[Annotator "NA RC"]
[PlyCount "96"]
[EventDate "2020.10.27"]
[EventType "swiss"]
[EventRounds "7"]
[EventCountry "GER"]
[SourceTitle "playchess.com"]
[Source "ChessBase"]
[SourceQuality "1"]
[TimeControl "40/5400+30:1800+30"]

1. e4 {[%emt 0:00:00]} e5 {[%emt 0:00:00]} 2. Nf3 {[%emt 0:00:00]} Nc6 {[%emt 0:00:00]} 3. Bb5 {[%emt 0:00:00]} a6 {[%emt 0:00:00]} 4. Ba4 {[%emt 0:00:00]} Nf6 {[%emt 0:00:00]} 5. Qe2 {[%emt 0:00:04]} b5 {[%emt 0:01:29]} 6. Bb3 {[%emt 0:00:07]} Bc5 {[%emt 0:07:38]} 7. c3 {[%emt 0:00:13]} O-O {[%emt 0:00:27]} 8. O-O {[%emt 0:00:06]} Bb7 {[%emt 0:00:36]} 9. Rd1 {[%emt 0:03:53]} Re8 {[%emt 0:08:55]} 10. d3 {[%emt 0:01:17]} Ba7 {[%emt 0:02:51]} 11. Nbd2 {[%emt 0:01:45]} d6 {[%emt 0:08:58]} 12. Nf1 {[%emt 0:00:58]} Qd7 {[%emt 0:00:46]} 13. Ng3 {[%emt 0:03:35]} Na5 {[%emt 0:09:35]} 14. Bc2 {[%emt 0:01:27]} Ng4 {[%emt 0:00:27]} 15. Be3 {[%emt 0:02:33]} Nxe3 {[%emt 0:00:30]} 16. fxe3 {[%emt 0:00:07]} Rad8 {[%emt 0:05:09]} 17. b4 {[%emt 0:01:41]} Nc6 {[%emt 0:00:11]} 18. Bb3 {[%emt 0:00:50]} a5 {[%emt 0:04:04]} 19. Ng5 {[%emt 0:06:35]} Rf8 {[%emt 0:01:56]} 20. Rf1 {[%emt 0:00:36]} d5 {[%emt 0:05:31]} 21. Bxd5 {[%emt 0:05:53]} Nd4 {[%emt 0:12:05]} 22. exd4 {[%emt 0:05:07]} Bxd5 {[%emt 0:00:38]} 23. exd5 {[%emt 0:00:08]} exd4 {[%emt 0:00:13]} 24. Kh1 {[%emt 0:02:06]} dxc3 {[%emt 0:01:48]} 25. Qe4 {[%emt 0:04:58]} g6 {[%emt 0:04:16]} 26. Nh5 {[%emt 0:00:36]} f5 {[%emt 0:01:16]} 27. Qe6+ {[%emt 0:01:57]} Qxe6 {[%emt 0:00:19]} 28. Nxe6 {[%emt 0:00:06]} gxh5 {[%emt 0:00:18]} 29. Nxd8 {[%emt 0:00:09]} Rxd8 {[%emt 0:00:05]} 30. Rxf5 {[%emt 0:00:40]} axb4 {[%emt 0:02:08]} 31. g3 {[%emt 0:03:50]} Be3 {[%emt 0:03:20]} 32. Rf3 {[%emt 0:00:26]} Bd2 {[%emt 0:00:35]} 33. Rf2 {[%emt 0:01:30]} Rxd5 {[%emt 0:00:22]} 34. Raf1 {[%emt 0:07:34]} Rd8 {[%emt 0:02:39]} 35. Re2 {[%emt 0:01:16]} Rf8 {[%emt 0:02:08]} 36. Rxf8+ {[%emt 0:01:54]} Kxf8 {[%emt 0:00:12]} 37. Rf2+ {[%emt 0:00:04]} Kg7 {[%emt 0:00:10]} 38. Kg2 {[%emt 0:00:15]} c2 {[%emt 0:00:19]} 39. Rf1 {[%emt 0:00:05]} c1=Q {[%emt 0:00:11]} 40. Rxc1 {[%emt 0:00:03]} Bxc1 {[%emt 0:00:05]} 41. Kf3 {[%emt 0:30:48]} Kf6 {[%emt 0:31:02]} 42. Ke4 {[%emt 0:00:47]} Ke6 {[%emt 0:00:10]} 43. h3 {[%emt 0:00:21]} Bb2 {[%emt 0:02:21]} 44. d4 {[%emt 0:00:46]} c6 {[%emt 0:00:53]} 45. g4 {[%emt 0:00:24]} hxg4 {[%emt 0:00:34]} 46. hxg4 {[%emt 0:00:07]} h6 {[%emt 0:00:10]} 47. Ke3 {[%emt 0:00:47]} Kd5 {[%emt 0:00:15]} 48. Kd3 {[%emt 0:00:05]} Bxd4 {[%emt 0:00:15]} 0-1